bitfinex/quotes_ETHUSD_20251017
["timestamp","ask_amount","ask_price","bid_price","bid_amount"]
[1760686460097,2.889,3781.0,3780.4,0.001]
[1760686460509,0.4416,3780.9,3780.4,0.001]
[1760686460685,0.2265,3781.4,3780.4,0.001]
[1760686460884,0.2265,3782.4,3780.5,6.73139075]
[1760686461099,1.687,3782.3,3781.3,0.132]
[1760686461298,1.687,3782.3,3781.4,0.1365]
[1760686461510,1.687,3782.3,3781.5,0.132]
[1760686461805,2.89,3782.2,3780.9,1.728]
[1760686462006,2.89,3782.2,3781.3,4.37258602]
[1760686462171,0.04609923,3782.5,3781.3,0.71493784]
[1760686462375,0.4291,3783.2,3782.1,2.64403148]
[1760686462578,0.04609059,3783.5,3782.3,0.132]
[1760686462775,0.993,3783.6,3783.0,0.132]
[1760686462970,0.4291,3784.7,3783.5,2.64302569]
[1760686463205,2.3001,3784.6,3782.6,0.1783]
[1760686463516,2.889,3784.5,3784.0,0.132]
[1760686464040,2.889,3784.5,3782.5,0.4445]
[1760686464041,0.4291,3784.4,3782.5,0.4445]
[1760686464197,0.4291,3784.4,3783.5,0.132]
[1760686464376,0.4291,3784.4,3782.9,2.3616]
[1760686464584,0.4291,3784.4,3782.8,1.728]
[1760686464908,2.888,3784.3,3782.5,0.4445]
[1760686465097,0.2195,3784.8,3782.5,0.4445]
[1760686465098,0.4291,3784.5,3783.2,1.728]
[1760686465298,0.4291,3784.5,3783.0,2.3616]
[1760686465501,1.058,3784.4,3782.8,2.64350918]
[1760686465810,1.058,3784.4,3782.8,1.728]
[1760686466009,0.4291,3784.3,3782.5,1.728]
[1760686466180,0.4291,3784.2,3782.2,0.1549]
[1760686466515,0.4291,3784.2,3781.5,1.728]
[1760686466712,0.4291,3784.1,3781.7,7.00973]
[1760686466914,0.04608552,3783.8,3781.7,2.162]
[1760686467113,0.6486,3783.7,3782.0,2.64409435]
[1760686467313,0.6486,3783.7,3782.3,1.728]
[1760686467500,0.6486,3783.7,3781.8,0.6336]
[1760686467690,0.6486,3783.7,3782.2,2.64395085]
[1760686467907,0.6486,3783.7,3782.4,2.64378879]
[1760686468124,0.04608552,3783.8,3782.3,0.26439508]
[1760686468424,0.6486,3783.7,3782.1,1.8829]
[1760686468600,0.604,3783.6,3782.1,0.1549]
[1760686469131,0.604,3783.6,3782.4,2.64381115]
[1760686469320,0.604,3783.6,3782.3,1.728]
[1760686469521,0.2195,3783.7,3782.1,0.5994]
[1760686469733,0.04608179,3784.3,3782.7,0.6336]
[1760686469915,2.0321,3784.2,3782.2,2.66965716]
[1760686470111,0.4291,3784.1,3782.5,2.6437532]
[1760686470305,0.4291,3784.1,3782.2,0.49715716]
[1760686470505,0.6486,3784.8,3783.4,2.64311831]
[1760686470708,1.329,3784.0,3783.4,0.26431183]
[1760686471012,2.884,3785.1,3783.6,1.728]
[1760686471334,2.884,3785.1,3784.2,1.728]
[1760686471634,2.884,3785.1,3783.9,1.728]
[1760686471936,2.884,3785.1,3784.1,1.728]
[1760686472108,2.884,3785.1,3783.5,0.6336]
[1760686472302,2.884,3785.1,3783.9,2.64274213]
[1760686472505,2.884,3785.1,3783.7,1.728]
[1760686472726,0.4291,3785.0,3782.7,0.4445]
[1760686473064,3.1045,3784.9,3783.7,1.728]
[1760686473235,3.1045,3784.9,3782.7,0.4445]
[1760686473236,0.4291,3784.8,3782.7,0.4445]
[1760686473403,0.4291,3784.8,3782.8,0.21725]
[1760686473603,0.4291,3784.8,3781.8,26.44241512]
[1760686473604,1.691,3784.7,3782.1,0.5994]
[1760686473820,0.4291,3784.6,3782.2,3.33632]
[1760686474068,0.4291,3784.6,3783.1,1.728]
[1760686474206,1.691,3784.7,3782.3,0.4445]
[1760686474405,0.4291,3784.5,3782.3,0.4445]
[1760686474623,2.883,3784.4,3783.1,2.64333243]
[1760686474953,0.2195,3784.9,3783.5,2.77505281]
[1760686475116,2.883,3784.8,3783.6,1.728]
[1760686475353,2.883,3784.8,3783.5,0.132]
[1760686476107,2.883,3784.8,3783.8,1.728]
[1760686476330,2.883,3784.8,3783.5,0.132]
[1760686476644,0.4291,3785.1,3783.6,2.3616]
[1760686476806,1.487,3785.0,3784.4,0.132]
[1760686477141,1.487,3785.0,3783.2,26.44241512]
[1760686477142,0.2195,3784.9,3783.5,0.1783]
[1760686477308,0.2195,3784.9,3783.6,2.64298551]
[1760686477514,2.881,3784.8,3783.9,1.728]
[1760686477714,2.881,3784.9,3783.9,0.1728]
[1760686478049,2.881,3784.9,3783.6,0.6336]
[1760686478343,1.0,3785.0,3783.6,0.6336]
[1760686478544,2.881,3784.8,3784.3,1.728]
[1760686478719,2.881,3784.8,3784.2,2.64256646]
[1760686479052,2.881,3784.8,3783.8,0.6336]
[1760686479259,1.0,3785.0,3784.0,0.6336]
[1760686479574,1.0,3785.0,3784.3,1.728]
[1760686479723,1.0,3785.0,3784.2,8.018129]
[1760686479724,1.0,3785.0,3784.8,2.6420901]
[1760686479925,1.0,3785.0,3784.2,1.728]
[1760686479926,1.0,3785.0,3784.9,30.81249284]
[1760686480226,0.002,3785.6,3785.5,14.35591596]
[1760686480436,0.002,3785.6,3785.5,9.46085327]
[1760686480637,0.002,3785.6,3785.5,9.33625627]
[1760686481058,0.002,3785.6,3785.5,7.14752627]
[1760686481259,0.002,3785.6,3785.5,17.56459534]
[1760686481646,0.002,3785.6,3785.5,44.00701046]
[1760686481847,0.002,3785.6,3785.5,43.66046746]
[1760686482026,0.002,3785.6,3785.5,43.66779946]
[1760686482227,0.002,3785.6,3785.5,41.26796746]
[1760686482425,0.002,3785.6,3785.5,43.90044699]
[1760686482660,0.002,3785.6,3785.5,8.08023849]
[1760686482884,0.002,3785.6,3785.0,0.53840131]
[1760686483764,0.4291,3785.5,3784.1,0.23616]
[1760686483943,0.4291,3785.5,3784.0,2.64264945]
[1760686484266,0.4291,3785.5,3783.0,0.6019]
[1760686484267,0.4291,3785.4,3783.1,0.14138547]
[1760686484428,0.4291,3785.4,3783.0,0.6019]
[1760686484429,0.4291,3785.4,3783.0,0.1574]
[1760686484633,0.002,3785.6,3783.0,0.1574]
[1760686484634,0.4291,3785.3,3783.0,0.1574]
[1760686484980,0.4291,3785.3,3783.6,1.728]
[1760686485157,0.4291,3785.2,3782.9,0.1783]
[1760686485327,0.4291,3785.2,3783.4,2.64306426]
[1760686485533,0.4291,3785.2,3783.5,3.14350586]
[1760686485854,0.4291,3785.1,3783.5,0.50046643]
[1760686486052,1.737,3785.0,3783.6,0.4445]
[1760686486364,0.2195,3784.9,3783.7,3.27649064]
[1760686486569,0.4291,3784.8,3783.3,0.6336]
[1760686486796,0.4291,3784.8,3783.8,1.728]
[1760686487097,0.2195,3784.9,3783.9,0.132]
[1760686487400,0.2195,3783.9,3783.2,0.132]
[1760686487598,0.4291,3783.8,3782.4,2.64381578]
[1760686487799,2.873,3783.7,3782.5,0.27848943]
[1760686488017,0.2195,3783.9,3782.3,2.64389392]
[1760686488311,0.2195,3784.2,3782.8,0.001]
[1760686488612,0.4291,3784.4,3783.4,1.728]
[1760686488763,0.04607152,3784.5,3783.4,0.6336]
[1760686488965,0.002,3784.8,3784.2,1.728]
[1760686489165,1.096,3784.8,3783.6,0.6336]
[1760686489365,1.096,3784.8,3784.0,2.3616]
[1760686489584,1.096,3784.8,3784.0,0.6336]
[1760686489786,0.002,3784.8,3783.7,1.728]
[1760686489996,0.002,3784.8,3783.9,0.6336]
[1760686490302,0.002,3784.8,3784.2,1.728]
[1760686490513,0.002,3784.8,3784.1,2.64260728]
[1760686490514,0.002,3784.8,3784.1,1.728]
[1760686490800,0.002,3784.8,3783.3,0.6336]
[1760686491016,0.002,3784.8,3784.3,0.6336]
[1760686491302,0.002,3784.8,3784.4,1.728]
[1760686491500,0.002,3784.8,3784.6,1.728]
[1760686491685,0.002,3784.8,3784.7,4.37021734]
[1760686492061,0.002,3784.8,3784.7,1.728]
[1760686492501,0.002,3784.8,3784.7,2.8064]
[1760686492703,0.002,3784.8,3784.7,5.72925734]
[1760686492916,0.002,3784.8,3784.7,11.36478034]
[1760686493405,0.002,3784.8,3784.7,5.28445734]
[1760686493705,0.002,3784.8,3784.7,2.00864]
[1760686493873,0.002,3784.8,3784.7,1.728]
[1760686494290,0.002,3784.8,3784.7,4.37021734]
[1760686494492,0.002,3784.8,3784.7,1.728]
[1760686494894,0.002,3784.8,3784.7,5.00381734]
[1760686495097,0.002,3784.8,3784.7,5.44861734]
[1760686495433,0.002,3784.8,3784.7,5.81291355]
[1760686495634,0.002,3784.8,3784.7,6.25771355]
[1760686496140,0.002,3784.8,3784.7,2.53709621]
[1760686496286,0.002,3784.8,3784.7,1.728]
[1760686497691,0.002,3784.8,3784.7,1.86]
[1760686498116,0.002,3784.8,3784.7,4.50221734]
[1760686498628,0.002,3784.8,3784.7,5.13581734]
[1760686498830,0.002,3784.8,3784.7,10.22722334]
[1760686499018,0.002,3785.2,3784.7,10.22722334]
[1760686499019,0.002,3785.2,3785.1,3.27553812]
[1760686499215,0.002,3785.2,3785.1,45.10451824]
[1760686499418,0.002,3785.2,3785.1,42.64873724]
[1760686499623,0.002,3785.2,3785.1,34.44075424]
[1760686499798,0.002,3785.2,3785.1,32.02275324]
[1760686500004,0.002,3785.2,3785.1,7.76801765]
[1760686500336,0.002,3785.2,3785.1,1.86]
[1760686500699,0.002,3785.2,3785.1,5.13553812]
[1760686500902,0.002,3785.2,3785.1,2.4936]
[1760686501230,0.002,3785.2,3785.1,12.21062912]
[1760686501752,0.002,3785.6,3785.1,13.19714412]
[1760686501974,0.5816,3787.8,3785.9,35.00297985]
[1760686502252,0.124,3787.8,3786.3,11.14230981]
[1760686502551,0.124,3787.8,3786.3,2.4936]
[1760686502552,0.4549,3787.7,3786.3,2.4936]
[1760686502755,0.4546,3786.4,3785.2,1.5839209]
[1760686502923,0.4546,3786.4,3784.4,26.87431512]
[1760686503125,1.3386,3786.3,3784.8,2.64207927]
[1760686503434,0.4526,3786.2,3783.8,3.895485]
[1760686503636,0.4526,3786.1,3783.5,0.54142032]
[1760686503834,0.4526,3786.1,3784.5,2.64231735]
[1760686504011,0.886,3786.3,3784.8,2.64212782]
[1760686504012,0.4526,3786.0,3784.8,2.64212782]
[1760686504215,0.2286,3785.9,3784.6,2.64221968]
[1760686504417,0.2286,3785.9,3784.3,0.1574]
[1760686504616,1.597,3785.8,3784.3,0.1574]
[1760686504845,0.2286,3785.9,3784.3,0.1574]
[1760686505049,0.002,3786.4,3784.7,0.6336]
[1760686505313,0.002,3786.4,3785.2,1.728]
[1760686505512,0.002,3786.4,3784.8,27.23774522]
[1760686505513,0.4481,3786.3,3785.0,0.6336]
[1760686505712,0.4481,3786.3,3785.4,2.64169183]
[1760686506037,0.4481,3786.3,3784.5,2.64229839]
[1760686506038,0.4481,3786.3,3785.3,1.728]
[1760686506252,0.4481,3786.3,3784.3,1.8854]
[1760686506538,0.4481,3786.2,3785.3,1.728]
[1760686506740,0.4481,3786.2,3784.9,0.6336]
[1760686506961,0.4481,3786.2,3785.7,1.728]
[1760686507129,0.2308,3785.8,3784.4,2.1599]
[1760686507331,0.2308,3785.8,3785.3,2.64173122]
[1760686507516,0.2308,3785.8,3785.1,2.64193231]
[1760686507718,0.2308,3785.8,3784.7,0.6336]
[1760686507936,0.2308,3785.8,3785.0,1.728]
[1760686508134,0.4481,3785.7,3784.5,1.728]
[1760686508426,0.2308,3785.8,3785.0,2.64194432]
[1760686508660,0.2308,3785.8,3785.1,0.6336]
[1760686508864,0.002,3786.3,3786.2,5.00277056]
[1760686509169,0.002,3786.3,3786.2,2.22827706]
[1760686509390,0.002,3786.3,3786.2,5.00277056]
[1760686509748,0.002,3786.3,3786.2,5.43467056]
[1760686510077,0.002,3786.4,3786.2,5.43467056]
[1760686510078,1e-08,3786.4,3786.3,9.11661381]
[1760686510280,1e-08,3786.4,3786.3,5.00270081]
[1760686510505,1e-08,3786.4,3786.3,3.70660081]
[1760686510782,1e-08,3786.4,3786.3,6.06937411]
[1760686511083,1e-08,3786.4,3786.3,5.63747411]
[1760686511386,1e-08,3786.4,3786.3,5.00387411]
[1760686511679,1e-08,3786.4,3786.3,5.00270081]
[1760686511879,1e-08,3786.4,3786.3,10.11993481]
[1760686512088,1e-08,3786.4,3786.3,19.28485481]
[1760686512383,0.002,3786.7,3786.6,9.96622856]
[1760686512678,0.002,3786.7,3786.6,9.29485056]
[1760686512982,0.002,3786.7,3786.6,3.59837456]
[1760686513144,0.002,3786.7,3786.6,12.06997056]
[1760686513350,0.002,3786.7,3786.6,7.69921356]
[1760686513681,0.002,3786.7,3786.6,8.86630256]
[1760686514178,1e-08,3787.1,3787.0,7.21441762]
[1760686514381,1e-08,3787.1,3787.0,11.80441762]
[1760686514589,1e-08,3787.1,3787.0,37.8927003]
[1760686514754,0.042,3788.6,3787.7,13.24782761]
[1760686514946,0.002,3788.6,3787.7,10.43339761]
[1760686515150,0.002,3788.6,3787.7,10.86529761]
[1760686515484,0.002,3788.6,3787.7,13.15889261]
[1760686515787,0.002,3788.6,3787.7,5.00172461]
[1760686516278,0.002,3788.6,3787.7,5.76591972]
[1760686517291,0.002,3788.6,3787.7,5.00172461]
[1760686517787,0.002,3788.6,3787.7,1.728]
[1760686517948,0.4354,3787.8,3787.0,2.64060072]
[1760686518147,0.4354,3787.8,3785.8,2.64144962]
[1760686518360,0.4334,3787.7,3785.7,0.1666]
[1760686518681,0.4334,3787.7,3786.6,1.728]
[1760686518983,0.4334,3787.6,3785.8,0.34774278]
[1760686519145,0.2279,3786.7,3785.2,25.68266474]
[1760686519466,0.2279,3786.7,3785.3,4.529]
[1760686519669,0.2279,3787.0,3785.5,10.817613]
[1760686519874,0.2279,3787.0,3786.5,1.728]
[1760686520180,0.4549,3787.4,3786.7,2.64076333]
[1760686520181,0.4525,3787.4,3786.7,2.64076333]
[1760686520382,0.002,3787.8,3787.5,1.728]
[1760686520598,0.002,3787.8,3787.1,0.6336]
[1760686520799,0.002,3787.8,3787.4,2.3616]
[1760686520985,0.002,3787.8,3787.1,0.6336]
[1760686520986,0.002,3787.8,3787.3,2.3616]
[1760686521302,0.002,3787.8,3787.0,0.6336]
[1760686521473,0.002,3787.8,3787.4,1.728]
[1760686521674,0.002,3787.8,3787.5,2.64026402]
[1760686521998,0.002,3787.8,3787.7,4.36812461]
[1760686522204,0.002,3787.8,3787.7,5.00172461]
[1760686522571,0.002,3787.8,3787.7,8.66519361]
[1760686522764,0.002,3787.8,3787.7,9.79573529]
[1760686523100,0.002,3787.8,3787.7,0.132]
[1760686523300,0.4426,3787.8,3786.6,0.1574]
[1760686523486,0.4426,3787.8,3787.4,0.132]
[1760686523687,0.4426,3787.8,3787.0,0.132]
[1760686523688,0.4406,3787.7,3787.0,0.132]
[1760686523888,0.4406,3787.7,3786.2,0.1666]
[1760686524197,0.4406,3787.7,3786.9,1.728]
[1760686524504,2.2036,3787.7,3787.1,0.132]
[1760686524703,1.763,3787.7,3787.1,0.132]
[1760686525002,1.763,3787.7,3787.4,1.728]
[1760686525168,1.763,3787.7,3787.1,0.132]
[1760686525365,1.763,3787.7,3787.4,1.728]
[1760686525699,1.763,3787.7,3787.6,0.132]
[1760686525904,2.2036,3787.7,3786.9,0.6336]
[1760686526090,2.2036,3787.7,3787.4,0.132]
[1760686526276,0.4406,3787.6,3786.6,2.64089156]
[1760686526601,2.592,3787.8,3786.7,0.6336]
[1760686526802,0.002,3787.8,3787.1,2.64047578]
[1760686527116,0.002,3787.8,3787.1,0.1574]
[1760686527277,0.002,3787.8,3787.7,1.86]
[1760686528111,0.002,3787.8,3787.7,4.50012461]
[1760686528322,0.002,3787.8,3787.7,5.71576063]
[1760686528630,0.002,3787.8,3787.7,23.31008463]
[1760686528779,0.002,3787.8,3787.7,11.35066163]
[1760686528979,0.002,3787.8,3787.7,5.84776063]
[1760686529179,0.002,3787.8,3787.7,5.13372461]
[1760686530719,0.002,3787.8,3787.7,11.63200261]
[1760686531027,0.002,3787.8,3787.7,8.84041061]
[1760686531531,1e-08,3788.2,3788.1,2.63984583]
[1760686531732,1e-08,3788.2,3788.1,10.22746583]
[1760686532021,1e-08,3788.2,3788.1,11.22787979]
[1760686532191,1e-08,3788.2,3788.1,2.3616]
[1760686532394,1e-08,3788.2,3788.1,1.728]
[1760686532596,1e-08,3788.2,3788.1,16.58722683]
[1760686532812,0.002,3788.6,3788.5,3.27316711]
[1760686533120,0.002,3788.6,3788.5,23.92385511]
[1760686533320,0.602,3789.7,3789.6,3.27240092]
[1760686533612,0.602,3789.7,3789.6,2.63880092]
[1760686533983,0.602,3789.7,3789.6,34.19829187]
[1760686534178,0.602,3789.7,3789.6,33.31203587]
[1760686534613,0.602,3789.7,3789.6,35.54006187]
[1760686534928,0.602,3789.7,3788.7,2.498802]
[1760686535082,0.602,3789.7,3789.6,2.63880092]
[1760686535488,0.602,3789.7,3789.6,5.00040092]
[1760686535898,0.602,3789.7,3789.6,4.36680092]
[1760686536745,0.602,3789.7,3789.6,1.728]
[1760686537033,0.602,3789.7,3789.6,4.36680092]
[1760686537194,0.602,3789.7,3789.6,5.70097413]
[1760686537195,0.002,3789.7,3789.6,5.70097413]
[1760686537393,0.002,3789.7,3789.6,16.20502313]
[1760686537598,0.002,3789.7,3789.6,14.98244313]
[1760686537932,0.002,3789.7,3789.6,10.82345613]
[1760686538133,0.002,3789.7,3789.6,5.70097413]
[1760686539140,0.002,3789.7,3789.6,4.36680092]
[1760686539338,0.4192,3789.7,3789.6,1.728]
[1760686539512,0.002,3789.7,3789.5,2.63885927]
[1760686539701,0.002,3789.7,3789.6,2.63880092]
[1760686540714,0.4192,3789.7,3788.1,0.1666]
[1760686540902,0.4192,3789.7,3788.3,28.39841895]
[1760686541098,0.4192,3789.7,3788.3,31.03089848]
[1760686541345,0.002,3789.7,3789.6,2.63880092]
[1760686541506,0.002,3789.7,3788.9,28.39841895]
[1760686541838,0.002,3789.7,3789.6,4.36680092]
[1760686542038,0.002,3789.7,3789.3,2.63899676]
[1760686542225,0.4172,3789.6,3788.8,2.63931213]
[1760686542541,0.4172,3789.6,3788.9,2.63924981]
[1760686542718,0.4172,3789.6,3788.9,1.728]
[1760686543040,0.4172,3789.5,3787.8,28.39841895]
[1760686543253,1.529,3789.5,3787.9,3.07657953]
[1760686543455,0.4172,3789.4,3789.2,0.001]
[1760686543823,0.4172,3789.3,3789.2,0.001]
[1760686545157,2.848,3789.3,3789.2,0.001]
[1760686545454,3.2652,3789.3,3789.2,0.001]
[1760686545825,0.002,3789.7,3789.2,0.001]
[1760686546031,1.755,3789.7,3789.2,0.001]
[1760686546252,0.4172,3789.6,3789.2,0.001]
[1760686547126,0.002,3789.7,3789.6,2.63880092]
[1760686547328,0.002,3789.7,3789.6,33.07350996]
[1760686547538,0.002,3789.7,3789.2,0.001]
[1760686547539,0.4565,3789.7,3789.2,0.001]
[1760686547777,0.4545,3789.6,3789.2,0.001]
[1760686548123,0.4545,3789.5,3789.2,0.001]
[1760686548570,0.4545,3789.4,3789.2,0.001]
[1760686548959,0.4545,3789.3,3789.2,0.001]
[1760686549430,0.002,3789.7,3789.2,0.001]
[1760686549629,0.4545,3789.6,3789.2,0.001]
[1760686549876,0.002,3789.7,3789.2,0.001]
[1760686550024,0.002,3789.7,3789.3,1.728]
[1760686550224,0.002,3789.7,3789.6,4.36680092]
[1760686550478,0.002,3789.7,3789.6,1.728]
[1760686550700,0.4494,3789.6,3789.2,0.001]
[1760686550998,0.002,3789.7,3789.2,1.729]
[1760686551144,0.4514,3789.7,3789.2,0.001]
[1760686551343,0.002,3789.7,3789.2,0.001]
[1760686551749,0.4445,3789.6,3789.2,0.001]
[1760686551950,0.002,3789.7,3789.2,0.001]
[1760686551951,0.4445,3789.5,3789.2,0.001]
[1760686552178,0.4445,3789.4,3789.2,0.001]
[1760686552376,0.4445,3789.3,3789.2,0.001]
[1760686554551,3.2915,3789.3,3789.2,0.001]
[1760686555484,2.847,3789.3,3789.2,0.001]
[1760686555650,3.2915,3789.3,3789.2,0.001]
[1760686556998,0.002,3789.7,3789.2,0.001]
[1760686557204,0.4445,3789.6,3789.2,0.001]
[1760686557497,0.002,3789.7,3789.2,2.64001855]
[1760686557662,0.002,3789.7,3789.2,0.001]
[1760686557870,0.002,3789.7,3789.6,2.63880092]
[1760686558486,0.002,3789.7,3789.3,1.728]
[1760686559161,0.002,3789.7,3789.2,0.001]
[1760686559549,0.002,3789.7,3789.5,2.63886063]
[1760686559751,0.002,3789.7,3789.6,4.36680092]
[1760686559994,0.002,3789.7,3789.5,0.52789385]
[1760686560200,0.002,3789.7,3789.3,1.728]
[1760686560201,0.002,3789.7,3789.2,0.001]
[1760686560352,0.002,3789.7,3789.3,1.728]
[1760686560558,0.002,3789.7,3789.2,0.001]
[1760686561287,0.4272,3789.6,3789.2,0.001]
[1760686561480,0.4272,3789.5,3789.2,0.001]
[1760686561815,0.4272,3789.4,3789.2,0.001]
[1760686562067,0.4272,3789.3,3789.2,0.001]
[1760686562409,0.4272,3789.3,3788.8,0.001]
[1760686562577,0.2242,3788.9,3786.8,2.64070767]
[1760686562771,0.4293,3788.8,3786.8,0.26417077]
[1760686563074,4.1133,3788.8,3786.8,0.26417077]
[1760686563292,4.1133,3788.8,3787.0,2.6405478]
[1760686563495,0.4293,3788.7,3787.1,0.1594]
[1760686563717,0.4293,3788.7,3787.4,2.64027406]
[1760686563918,0.4293,3788.6,3787.3,2.64039078]
[1760686564123,0.4293,3788.6,3787.0,4.36855165]
[1760686564124,3.684,3788.8,3787.4,2.64032572]
[1760686564288,0.4293,3788.5,3787.4,2.64032572]
[1760686564473,0.2242,3787.5,3786.5,0.001]
[1760686564673,2.847,3787.4,3786.5,2.63347953]
[1760686565030,0.4293,3787.3,3786.5,0.001]
[1760686565525,0.4293,3788.6,3787.2,0.1594]
[1760686565705,0.2242,3788.2,3786.7,1.728]
[1760686565871,0.4293,3788.1,3786.8,1.728]
[1760686566076,0.4293,3788.0,3786.5,0.001]
[1760686566297,0.4293,3788.0,3786.5,2.64195362]
[1760686566498,0.6535,3787.9,3786.5,2.64195362]
[1760686566819,0.4293,3787.8,3786.5,0.001]
[1760686567179,0.04603347,3787.7,3786.5,0.001]
[1760686567414,2.847,3787.6,3786.5,0.001]
[1760686567618,1.728,3787.5,3786.5,0.001]
[1760686568074,0.4293,3787.4,3786.5,0.001]
[1760686568411,0.4293,3787.4,3785.7,0.001]
[1760686568617,0.04605196,3787.2,3785.7,0.001]
[1760686568815,0.2242,3785.8,3785.7,0.001]
[1760686569029,4.7992,3785.8,3785.7,0.001]
[1760686569332,3.5005,3785.8,3785.7,0.001]
[1760686570791,5.2285,3785.8,3785.7,0.001]
[1760686571395,1.728,3785.7,3783.9,0.001]
[1760686571594,1.728,3785.5,3784.0,2.64270613]
[1760686571797,0.4293,3785.4,3783.9,0.001]
[1760686571996,0.04606372,3785.2,3784.0,0.4363]
[1760686572314,0.703,3785.5,3785.4,2.64172874]
[1760686572482,1.19,3786.9,3785.4,29.46336263]
[1760686572483,0.04604935,3786.8,3785.4,29.46336263]
[1760686572682,0.949,3786.7,3785.5,2.1643]
[1760686573328,0.949,3786.7,3785.8,29.02706263]
[1760686573811,0.949,3786.7,3785.5,0.4363]
[1760686574011,0.949,3786.7,3785.7,1.728]
[1760686574315,0.949,3786.7,3786.2,2.64116448]
[1760686574519,1.3783,3786.7,3785.7,1.728]
[1760686574680,1.3783,3786.7,3785.6,2.63247953]
[1760686574681,0.4293,3786.6,3785.3,29.02706263]
[1760686574880,0.4293,3786.6,3785.3,31.66884201]
[1760686575218,0.4293,3786.6,3785.4,2.63247953]
[1760686575520,0.949,3786.7,3784.2,2.64256479]
[1760686575521,0.4293,3786.5,3784.2,2.64256479]
[1760686575722,0.4293,3786.5,3783.8,0.1676]
[1760686575723,0.4293,3786.4,3783.9,0.4373]
[1760686576021,0.4293,3786.4,3784.3,2.64246949]
[1760686576222,0.6336,3786.0,3783.9,0.4373]
[1760686576382,0.6336,3786.0,3783.9,0.83839479]
[1760686576706,0.04605755,3786.1,3783.9,0.001]
[1760686576707,0.6336,3785.8,3783.9,0.001]
[1760686576891,0.04605755,3786.1,3783.9,0.001]
[1760686576892,0.6336,3785.6,3783.9,0.001]
[1760686577111,0.6336,3785.4,3783.9,0.001]
[1760686577433,0.2242,3784.0,3783.9,0.001]
[1760686577731,3.0712,3784.0,3783.9,0.001]
[1760686577933,5.2285,3784.0,3783.9,0.001]
[1760686578136,5.8621,3784.0,3783.9,0.001]
[1760686578336,2.3616,3783.9,3783.5,0.001]
[1760686578500,0.6336,3783.9,3783.5,0.001]
[1760686578701,0.4293,3783.8,3783.5,0.001]
[1760686579002,2.847,3783.7,3783.5,0.001]
[1760686579220,3.2763,3783.7,3783.5,0.001]
[1760686579417,0.27028187,3784.0,3783.5,0.001]
[1760686579648,0.05,3785.5,3783.5,0.001]
[1760686579649,0.2242,3784.5,3783.5,2.64403662]
[1760686579829,1.23607394,3784.8,3783.6,0.26440366]
[1760686580145,1.23607394,3784.8,3783.5,0.001]
[1760686580146,2.245,3784.4,3783.5,0.001]
[1760686580504,0.2242,3783.6,3783.5,0.001]
[1760686581000,0.6535,3783.6,3783.5,0.001]
[1760686581398,1.2871,3783.6,3783.5,0.001]
[1760686581703,0.6535,3783.6,3783.5,0.001]
[1760686581924,5.8631,3783.6,3783.5,0.001]
[1760686582534,5.90918801,3783.6,3783.5,0.001]
[1760686582924,0.2219,3784.5,3783.5,0.001]
[1760686583123,0.4459,3783.6,3783.5,0.001]
[1760686584026,5.0219,3783.6,3783.5,0.001]
[1760686584337,2.848,3783.6,3783.5,0.001]
[1760686584745,0.4459,3784.3,3783.5,0.001]
[1760686584951,0.2219,3784.5,3783.5,0.001]
[1760686585257,29.02706263,3786.1,3783.5,0.001]
[1760686585258,1.14,3784.4,3783.6,2.64298551]
[1760686585443,0.6678,3785.3,3783.5,0.72630851]
[1760686585645,1.191,3785.9,3783.9,29.02706263]
[1760686585646,1.999,3785.2,3783.9,29.02706263]
[1760686585876,1.999,3785.2,3784.0,2.1889]
[1760686586057,1.999,3785.2,3784.1,0.6285]
[1760686586228,0.678,3786.8,3785.1,0.1676]
[1760686586427,0.04605384,3786.1,3784.5,0.1676]
[1760686586758,2.848,3786.0,3784.6,3.10317358]
[1760686586925,2.848,3786.0,3785.1,1.728]
[1760686587124,2.848,3786.0,3785.5,2.64165315]
[1760686587330,2.848,3786.0,3785.2,0.1728]
[1760686587641,2.848,3786.0,3785.2,0.6337]
[1760686587839,0.04604712,3786.7,3785.3,0.4609]
[1760686588038,2.848,3786.6,3786.0,2.64128043]
[1760686588384,2.848,3786.6,3786.1,0.1604]
[1760686588565,2.848,3786.6,3785.7,0.1604]
[1760686588867,2.848,3786.6,3785.2,29.48796263]
[1760686588868,2.848,3786.6,3785.2,0.1604]
[1760686589038,2.848,3786.6,3784.7,1.728]
[1760686589039,0.4528,3786.5,3784.7,1.728]
[1760686589238,0.4528,3786.4,3784.7,0.91468848]
[1760686589440,0.04605324,3786.5,3785.3,1.728]
[1760686589749,2.097,3786.4,3785.4,0.6213]
[1760686590350,2.097,3786.4,3785.3,1.728]
[1760686590561,2.097,3786.4,3785.4,2.1889]
[1760686590857,2.097,3786.4,3785.8,1.728]
[1760686591164,0.0460451,3787.1,3786.2,1.728]
[1760686591336,1.678,3787.0,3785.9,0.4609]
[1760686591527,0.6747,3786.9,3785.0,0.4609]